Cogmind - Beta 16 @@@ ROGUE MODE // 2025.12.04 @ 18:03:19 Player: Vyckalino Result: Destroyed by S-27 Virus with Autogun Performance ------------- Evolutions (5) 2500 Regions Visited (4) 800 Robots Destroyed (7) 35 Value Destroyed (184) 184 Prototype IDs (0) 0 Alien Tech Used (0) 0 Bonus (0) 0 TOTAL SCORE: 3519 Bonus ------- None Cogmind --------- Core Integrity 0/1000 Matter 274/300 Energy 100/100 System Corruption 12% Temperature Cool (0) Movement Core (50) Location -5/Factory Parts ------- > --- POWER (2) -------- (None) > --- PROPULSION (7) --- (None) > --- UTILITY (6) ------ (None) > --- WEAPON (2) ------- (None) > --- INVENTORY (5) ---- Micro Fission Core Thunder Leg Improved System Restoration Module Peak State ------------ > --- POWER ------------ Ion Engine Ion Engine > --- PROPULSION ------- Aluminum Leg Aluminum Leg > --- UTILITY ---------- Improved Coolant Injector Small Storage Unit Energy Well Visual Processing Unit Sensor Array Force Field > --- WEAPON ----------- EM Pulse Gun Plasma Cannon > --- INVENTORY -------- Wheel EM Pulse Gun [Rating: 29] Favorites ----------- Power Ion Engine Engine Ion Engine Propulsion Aluminum Leg Leg Aluminum Leg Wheel Wheel Utility Small Storage Unit Device Sensor Array Storage Small Storage Unit Processor Visual Processing Unit Weapon EM Pulse Gun Energy Gun EM Pulse Gun Energy Cannon Plasma Cannon Ballistic Gun Light Assault Rifle Build | -11 -10 -10 -7 -5 ------- Run | Yrd Mat Sub Rec Fac Slots Evolved 10 | . . . . 10 Power 1 | . . . . 1 Propulsion 5 | . . . . 5 Utility 4 | . . . . 4 Weapon . | . . . . . Parts Attached 17 | 7 2 . 1 7 Power 2 | 1 . . . 1 Engine 2 | 1 . . . 1 Core . | . . . . . Reactor . | . . . . . Propulsion 3 | 2 . . . 1 Treads . | . . . . . Leg 2 | 2 . . . . Wheel 1 | . . . . 1 Hover . | . . . . . Flight . | . . . . . Utility 6 | 1 1 . . 4 Device 3 | . 1 . . 2 Storage 2 | 1 . . . 1 Processor 1 | . . . . 1 Hackware . | . . . . . Protection . | . . . . . Artifact . | . . . . . Weapon 6 | 3 1 . 1 1 Energy Gun 3 | 1 1 . 1 . Energy Cannon 1 | . . . . 1 Ballistic Gun 2 | 2 . . . . Ballistic Cannon . | . . . . . Launcher . | . . . . . Special Weapon . | . . . . . Impact Weapon . | . . . . . Slashing Weapon . | . . . . . Piercing Weapon . | . . . . . Special Melee Weapon . | . . . . . Unidentified Prototypes . | . . . . . Parts Lost 9 | . . . 1 8 Power 2 | . . . . 2 Propulsion 3 | . . . . 3 Utility 2 | . . . . 2 Weapon 2 | . . . 1 1 Highest Loss Streak 5 | . . . 1 5 To Critical Strikes . | . . . . . Average Backups 3 | 2 4 4 3 1 Power . | . 1 1 1 . Propulsion . | . 1 1 1 . Utility . | . . 1 1 . Weapon . | . 1 1 . . Tool/Special . | . . . . . Unused Backups 4 | . 1 . . 3 Power 1 | . . . . 1 Propulsion 2 | . 1 . . 1 Utility 1 | . . . . 1 Weapon . | . . . . . Tool/Special . | . . . . . Average Slot Usage (%) 79 | . 93 100 100 39 Engine 11 | . 14 14 14 7 Leg 21 | . 28 28 28 6 Device 11 | . 11 14 14 8 Storage 11 | . 14 14 14 4 Energy Gun 19 | . 23 28 28 3 Peak Build Rating 29 | 5 7 7 7 29 Average Rating 8 | 3 6 7 6 14 On Entrance 5 | . 5 7 7 7 Avg Prop Armor Cover (%) . | . . . . . Naked Turns 109 | . . . . 109 Heaviest Build 38 | 12 15 15 15 38 Greatest Support 20 | 20 20 20 20 20 Greatest Overweight (x) 2 | 2 . . . 1 Average Overweight (x) . | . . . . . Largest Inventory Capacity 8 | 8 8 8 8 8 Average Capacity 7 | 7 8 8 8 6 Most Carried 7 | 5 7 4 4 3 Average Carried 3 | 2 4 4 3 1 Final Capacity 8 | 8 8 8 8 5 Final Carried 4 | 4 4 4 3 3 Class Distribution -------------------- 100% | Mutant Dominant Class ---------------- Mutant | -10/Materials Mutant | -10/Subcaves Mutant | -7/Recycling Mutant | -5/Factory Resources | -11 -10 -10 -7 -5 ----------- Run | Yrd Mat Sub Rec Fac Matter Collected 336 | 175 115 7 10 29 Remotely . | . . . . . Salvage Created 279 | . 95 20 75 89 Parts 16 | . 9 1 2 4 Haulers Intercepted 1 | . 1 . . . Recyclers Shooed . | . . . . . Parts Field Recycled . | . . . . . Retrieved Matter . | . . . . . Parts Self-Destructed 3 | . . 3 . . Prevented . | . . . . . Parts Restored . | . . . . . Kills | -11 -10 -10 -7 -5 ------- Run | Yrd Mat Sub Rec Fac Combat Hostiles Destroyed 4 | . . 1 1 2 Melee 1 | . . . . 1 Guns 1 | . . 1 . . Cannons 1 | . . . . 1 Classes Destroyed 6 | . 3 1 1 1 Builder 1 | . 1 . . . Hauler 1 | . 1 . . . Operator 1 | . 1 . . . Swarmer 2 | . . 1 . 1 Sentry 1 | . . . 1 . Programmer 1 | . . . . 1 Best Kill Streak 2 | . 2 1 1 1 Combat Bots Only 1 | . . 1 1 1 Max Kills in Single Turn 1 | . 1 1 1 1 Gunslinging . | . . . . . Exploded . | . . . . . Melee 1 | . . . . 1 Uniques/NPCs Destroyed . | . . . . . Combat | -11 -10 -10 -7 -5 -------- Run | Yrd Mat Sub Rec Fac Hostile Shots Fired 198 | . . 3 45 150 Missed 77 | . . 1 19 57 Hits 121 | . . 2 26 93 Projectile 121 | . . 2 26 93 Critical Strikes 3 | . . . . 3 Part Disruptions 1 | . . . . 1 Damage Taken 1796 | . . 14 191 1591 Core 1045 | . . . 43 1002 Absorbed by Shields 142 | . . . . 142 Core Remaining (%) 91 | 100 . . 82 . Volleys Fired 30 | . 10 1 8 11 Largest 2 | . 1 2 2 2 Hottest 120 | . 40 80 80 120 Shots Fired 44 | . 11 2 15 16 Gun 33 | . 11 2 15 5 Cannon 11 | . . . . 11 Launcher . | . . . . . Special . | . . . . . Kinetic . | . . . . . Thermal 11 | . . . . 11 Explosive . | . . . . . Electromagnetic 33 | . 11 2 15 5 Robot Hit Streak 9 | . 3 4 9 7 Robot Miss Streak 4 | . 3 . 3 4 Penetration Max . | . . . . . Secondary Targets . | . . . . . Shots Hit Robots 28 | . 6 1 10 11 Core Hits 11 | . 4 1 3 3 Critical Kills . | . . . . . Critical Parts Destroyed . | . . . . . Critical Strikes . | . . . . . Melee Attacks . | . . . . . Impact . | . . . . . Slashing . | . . . . . Piercing . | . . . . . Sneak Attacks . | . . . . . Combat Hostiles . | . . . . . Follow-up Attacks . | . . . . . Damage Inflicted 498 | . 97 12 109 280 Guns 240 | . 97 12 109 22 Cannons 246 | . . . . 246 Explosions . | . . . . . Melee . | . . . . . Ramming 12 | . . . . 12 Kinetic . | . . . . . Thermal 246 | . . . . 246 Explosive . | . . . . . Electromagnetic 240 | . 97 12 109 22 Impact . | . . . . . Slashing . | . . . . . Piercing . | . . . . . Highest Corruption 12 | . 2 2 2 12 Average Corruption 3 | . 2 2 2 10 Corruption Purged . | . . . . . Corruption Blocked . | . . . . . Effects 24 | . 5 2 5 12 Message Errors 5 | . 2 . . 3 Matter Fused 3 | . . 1 . 2 Heat Flow Errors 3 | . . . 3 . Energy Discharges 4 | . 2 1 1 . Data Loss (minor) 4 | . . . 1 3 Data Loss (major) 1 | . . . . 1 Misfires 1 | . 1 . . . Misdirections 3 | . . . . 3 Overload Shots . | . . . . . Overflow Damage 30 | . . . . 30 Projectiles 30 | . . . . 30 Explosions . | . . . . . Melee . | . . . . . Knockbacks . | . . . . . Impact . | . . . . . Kinetic . | . . . . . Secondary . | . . . . . Self-Inflicted Damage 6 | . . . . 6 Shots . | . . . . . Rammed 1 | . . . . 1 Targets Rammed 1 | . . . . 1 Kicked . | . . . . . Crushed . | . . . . . Highest Temperature 221 | . 40 . 221 60 Average Temperature 69 | . 21 . 95 17 Received Heat Transfer 72 | . . 12 60 . Effects 1 | . . . 1 . Energy Bleed 1 | . . . 1 . Siege Activations . | . . . . . Martial Activations . | . . . . . Shielding Activations . | . . . . . Robots Disrupted . | . . . . . Combat Hostiles . | . . . . . Robots Corrupted 1 | . . . 1 . Combat Hostiles 1 | . . . 1 . Parts Fried 2 | . 1 . 1 . Impact Corruptions . | . . . . . Robots Melted . | . . . . . Combat Hostiles . | . . . . . Parts Melted . | . . . . . Heat Transferred 400 | . . . . 400 Parts Sabotaged . | . . . . . Parts Stolen . | . . . . . Parts Stripped . | . . . . . Power Chain Reactions . | . . . . . Alert | -11 -10 -10 -7 -5 ------- Run | Yrd Mat Sub Rec Fac Maximum Alert Level . | . . . . . Low Security (%) 100 | 100 100 . 100 100 Level 1 . | . . . . . Level 2 . | . . . . . Level 3 . | . . . . . Level 4 . | . . . . . Level 5 . | . . . . . High Security . | . . . . . Max Security . | . . . . . Peak Influence 150 | . 5 . 21 150 Initial 21 | . . . 21 . Average 8 | . . . 2 23 Influence Increases 307 | . 22 65 20 200 Destroy 0b10 Robot/C 80 | . . 20 20 40 Destroy 0b10 Robot/NC 15 | . 15 . . . Destroy Leader 12 | . 2 . . 10 Successful Hack 5 | . 5 . . . Lose Combat Pursuer 195 | . . 45 . 150 Influence Decreases 175 | . 22 20 65 68 Entered New Map 24 | . . . 24 . Time Decay 141 | . 22 20 41 58 Lost Part 10 | . . . . 10 Squads Dispatched 4 | . . . . 4 Investigation . | . . . . . Extermination 1 | . . . . 1 Reinforcement 3 | . . . . 3 Assault . | . . . . . Garrison . | . . . . . Intercept . | . . . . . Searches Triggered . | . . . . . Construction Impeded . | . . . . . Haulers Reinforced . | . . . . . Active Scanning Responses . | . . . . . Cargo Convoy Interrupts . | . . . . . Stealth | -11 -10 -10 -7 -5 --------- Run | Yrd Mat Sub Rec Fac Distress Signals . | . . . . . Communications Jammed . | . . . . . Distress Signals . | . . . . . Times Spotted 31 | . 4 5 1 21 Peak Tracking Total 12 | . 1 6 1 12 Tactical Retreats 3 | . . 1 . 2 Traps | -11 -10 -10 -7 -5 ------- Run | Yrd Mat Sub Rec Fac Traps Triggered 3 | . 1 . . 2 Indirectly . | . . . . . Trap Hack Attempts . | . . . . . Triggered . | . . . . . Disarmed . | . . . . . Reprogrammed . | . . . . . Reused . | . . . . . Traps Extracted . | . . . . . Installed . | . . . . . Triggered . | . . . . . Machines | -11 -10 -10 -7 -5 ---------- Run | Yrd Mat Sub Rec Fac Machines Disabled . | . . . . . Max in Single Turn . | . . . . . Machines Repaired . | . . . . . Machines Dismantled . | . . . . . Machines Sabotaged . | . . . . . Overloaded Fab Kills . | . . . . . Hacking | -11 -10 -10 -7 -5 --------- Run | Yrd Mat Sub Rec Fac Machines Accessed 5 | . 2 . 2 1 Terminals 5 | . 2 . 2 1 Fabricators . | . . . . . Repair Stations . | . . . . . Recycling Units . | . . . . . Scanalyzers . | . . . . . Garrison Access . | . . . . . Total Hacks 7 | . 3 . 2 2 Successful 1 | . 1 . . . Failed 6 | . 2 . 2 2 Catastrophic 2 | . . . 2 . Database Lockouts . | . . . . . Manual . | . . . . . Terminals 7 | . 3 . 2 2 Fabricators . | . . . . . Repair Stations . | . . . . . Recycling Units . | . . . . . Scanalyzers . | . . . . . Garrison Access . | . . . . . Terminal Hacks 1 | . 1 . . . Transport Status 1 | . 1 . . . Fabricator Hacks . | . . . . . Repair Station Hacks . | . . . . . Recycling Unit Hacks . | . . . . . Scanalyzer . | . . . . . Garrison Access Hacks . | . . . . . Unauthorized Hacks . | . . . . . Terminals . | . . . . . Fabricators . | . . . . . Repair Stations . | . . . . . Recycling Units . | . . . . . Scanalyzers . | . . . . . Garrison Access . | . . . . . Data Cores Recovered 1 | . 1 . . . Used 1 | . 1 . . . Hacking Detections 5 | . 2 . 2 1 Full Trace Events . | . . . . . Feedback Events . | . . . . . Feedback Blocked . | . . . . . Robot Schematics Acquired . | . . . . . Robots Built . | . . . . . Authchips . | . . . . . Time . | . . . . . Total Robot Build Rating . | . . . . . Part Schematics Acquired . | . . . . . Parts Built . | . . . . . Authchips . | . . . . . Time . | . . . . . Total Part Build Rating . | . . . . . Part Studies Acquired . | . . . . . Parts Repaired . | . . . . . Time . | . . . . . Parts Recycled . | . . . . . Recycled Matter . | . . . . . Retrieved Matter . | . . . . . Retrieved Components . | . . . . . Parts Scanalyzed . | . . . . . Part Schematics Acquired . | . . . . . Parts Damaged . | . . . . . Bothacking | -11 -10 -10 -7 -5 ------------ Run | Yrd Mat Sub Rec Fac Used RIF Installer . | . . . . . Robots Hacked . | . . . . . Non-combat . | . . . . . Combat . | . . . . . Robot Hacks Applied . | . . . . . Relay Couplers Released . | . . . . . Fabnet Peak Effective % . | . . . . . Robots Rewired . | . . . . . Allies Hacked . | . . . . . Hacks Repelled . | . . . . . Allies | -11 -10 -10 -7 -5 -------- Run | Yrd Mat Sub Rec Fac Total Allies . | . . . . . Largest Group . | . . . . . Highest-Rated Group . | . . . . . Highest-Rated Ally . | . . . . . Total Orders . | . . . . . Ally Attacks . | . . . . . Total Damage . | . . . . . Kills . | . . . . . Allies Corrupted . | . . . . . Allies Melted . | . . . . . Intel | -11 -10 -10 -7 -5 ------- Run | Yrd Mat Sub Rec Fac Active Infowar (turns) 1117 | . 387 92 383 255 Optics 254 | . . . . 254 Sensors 1039 | . 387 92 383 177 Robot Analysis Total . | . . . . . Derelict Logs Recovered . | . . . . . Drone Launches . | . . . . . Drone Recoveries . | . . . . . Exploration | -11 -10 -10 -7 -5 ------------- Run | Yrd Mat Sub Rec Fac Turns Passed 1387 | 64 447 92 383 401 Spaces Moved 1046 | 38 341 62 300 305 Core 218 | 9 . . . 209 Treads . | . . . . . Legs 799 | 29 341 62 300 67 Wheels 29 | . . . . 29 Hover . | . . . . . Flight . | . . . . . Fastest Speed 50 | 50 120 120 120 50 Average Speed 108 | 126 120 120 120 79 Slowest Speed 190 | 190 120 120 120 190 Overloaded Moves . | . . . . . Propulsion Burnouts . | . . . . . Robots Hopped . | . . . . . Potential Cave-ins . | . . . . . Cave-ins Triggered . | . . . . . Exploration Rate (%) 30 | 5 41 9 82 14 Regions Visited 4 Branch Regions 2 Pre-discovered Areas . | . . . . . Known Exits Taken . | . . . . . Unknown Exits Taken 4 | 1 1 1 1 . Scrap Searched . | . . . . . Spaces Dug . | . . . . . Terrain Destroyed . | . . . . . Melee . | . . . . . Projectile . | . . . . . AOE . | . . . . . Terrain Rammed . | . . . . . Walls Destroyed . | . . . . . Machines Disabled . | . . . . . Actions | -11 -10 -10 -7 -5 --------- Run | Yrd Mat Sub Rec Fac Total 1258 | 54 370 77 308 449 Wait 126 | . 10 15 . 101 Move 1042 | 37 340 61 299 305 Hop . | . . . . . Pick Up 21 | 9 5 . . 7 Fast Attach . | . . . . . Attach 16 | 6 2 . 1 7 Detach 3 | 1 . . . 2 Swap 2 | 1 . . . 1 Drop 9 | . 3 . . 6 Fire 30 | . 10 1 8 11 Melee . | . . . . . Ram 1 | . . . . 1 Kick . | . . . . . Crush . | . . . . . Escape Stasis 8 | . . . . 8 Rewire . | . . . . . Trap . | . . . . . Miscellaneous . | . . . . . Route ------- -11/Scrapyard -10/Materials (discovered 2 exits: [*Mat] / [*Sub]) -10/Subcaves -7/Recycling -5/Factory History --------- Turn | Location | Event 42 | -11/Scrapyard | Discovered new exit (range 14) 65 | -11/Scrapyard | Entered Materials 66 | -10/Materials | Met a group of wandering Federalists 313 | -10/Materials | Build established: Mutant 374 | -10/Materials | Discovered new exit (range 16) 460 | -10/Materials | Discovered new exit (range 9) 512 | -10/Materials | Entered Subcaves 513 | -10/Subcaves | Continued accompanying wandering Federalists (6) 513 | -10/Subcaves | Approached by a straggling Scientist 593 | -10/Subcaves | Discovered new exit (range 10) 604 | -10/Subcaves | Entered Recycling 605 | -7/Recycling | Met a Zionite searching for Scraptown 963 | -7/Recycling | Discovered new exit (range 16) 987 | -7/Recycling | Entered Factory 987 | -5/Factory | Evolved 10 slots: Power x1, Propulsion x5, Utility x4 1210 | -5/Factory | System corruption reached 10% 1263 | -5/Factory | Lost 5 parts (1p2n1u1w) 1329 | -5/Factory | Spotted B-75 Beast 1332 | -5/Factory | Core integrity fell below 50% 1368 | -5/Factory | Core integrity fell below 20% 1388 | -5/Factory | Destroyed by S-27 Virus with Autogun Last Messages --------------- SECURING TERMINAL." 01308_ O-16 Technician uses terminal to summon reinforcements. 01308_ ALERT: Hostiles spotted, dispatching reinforcements to Terminal F002. 01308_ O-16 Technician locks terminal. 01314_ System corrupted: Matter fused (-10). 01323_ Connecting with Terminal... 01323_ Current location identified: Factory 01331_ Q&JC%K2JLZD32IS7>LXM 01334_ Acquired Thunder Leg. 01349_ Slug penetrates Wall. 01351_ Slammed into S-27 Virus. 01351_ S-27 Virus destroyed. 01352_ Acquired 29 matter. 01355_ System corrupted: Component data lost. 01362_ K-01 Serf cleans the Nuclear Reactor. 01373_ JQ:C749ERKAE&>YSSM 5I:FRFN&D>V,9MGDCC 01387_ ALERT: Hostiles spotted, dispatching reinforcements to Terminal F019. Map ----- +----------------------------------------------------+ | ???+### """ # #????????????????? | | ?? """ + #????????????????? | | """ ##############????????????????? | | #?????????????????????????????? | | ! #?????????????????????????????? | | #?????????????????????????????? | | ###########+#######?????????????????????????? | | ? ?????# ! #?????????????????????????? | | ? ?????# #?????????????????????????? | | ?? ?????# """ """ #?????????????????????????? | | ?? ?????# """ """ #?????????????????????????? | | ??? ?????# """ """ #?????????????????????????? | | ??? ?????# #?????????????????????????? | | ???# ?????# """ """ #?????????????????????????? | | ???# ###### """ """ #?????????????????????????? | | ???# / """ """ ????????????????????????????? | | ???# ##### ??????????????????????????? | | #### # # #?????????????????????????? | | + *# ! #?????#####???????????????? | | ####### ################?? ????????????????? | | ??????# #??????? !#?? #?????????????????? | | ??????# #??????? ! ! #? #?????????????????? | | ??????# #???????? !?? #?????????????????? | | ??????# #???????? ? #?????????????????? | | ##+#####+###########+##+## #?????????????????? | | s @ #?????????????????? | | ########/###s s s #?????????????????? | | # """ """ """ #?????????????????? | | # """ """ """ ##?????????????????? | | """"""""" # """ """ """ """#??????????????????? | | # R"#??????????????????? | | """"""""" / """#??????????????????? | | # #??????????????????? | | ?"""""""" # ! ???????????????????? | | ??? ###+############ ???????????????????? | | ?????? """ #??????????????? ???????????????????? | | ??????? Y" #??????????????? ???????????????????? | | ????????"" #??????????????? ???????????????????? | | ?????????? #?????????????????????????????????????? | | ??????????##?????????????????????????????????????? | | ?????????????????????????????????????????????????? | | ?????????????????????????????????????????????????? | | ?????????????????????????????????????????????????? | | ?????????????????????????????????????????????????? | | ?????????????????????????????????????????????????? | | ?????????????????????????????????????????????????? | | ?????????????????????????????????????????????????? | | ?????????????????????????????????????????????????? | | ?????????????????????????????????????????????????? | | ?????????????????????????????????????????????????? | +----------------------------------------------------+ Best States ------------- Heat Dissipation 40 Coolant Potential 80 Energy Generation 15 Energy Capacity 750 Matter Stores 300 Matter Capacity 300 Sight Range 18 Robot Scan Range 14 Terrain Scan Density 10 Evasion (%) 55 Item Schematics ----------------- None Robot Schematics ------------------ None Fabricated ------------ Nothing Repaired ---------- Nothing Studied --------- None Alien Tech Used ----------------- None Achievements -------------- Dynamic Key Spot Them First Strength In Numbers Challenges ------------ None Game ------ Seed ExplosiveBackupMagmablaster Manual? 0 Play Time 00:18:41 Cumulative 5.3 hours Start 2025.12.04 @ 17:47:04 End 2025.12.04 @ 18:03:19 Sessions 1 Manual Loads 0 Difficulty Rogue Special Mode None Game No. 12 Rogue 12 Adventurer 0 Explorer 0 Win Type - Total 0 Types 0/0/0/0/0/0/0/0/0/0 Lore% 8 Gallery% 7 Achievement% 11 Wizard Run 0 Options --------- Layout 1 ASCII 0 Keyboard 0 Movement Mouse Keybinds 0 Fullscreen 2 Font 24/Proggy Map View 50x35 Zoom Use 0% Tactical HUD 1 Map Filters NONE Filters NONE Steam 1 RUN: a00e296e-e6eb-41c6-87ea-463ec929ce68